bitfinex/quotes_BTCUSD_20240627
["timestamp","ask_amount","ask_price","bid_price","bid_amount"]
[1719510589715,0.0931,62043.0,62042.0,0.00095357]
[1719510589926,0.0931,62043.0,62042.0,0.00195357]
[1719510590082,0.0931,62043.0,62042.0,0.28159356]
[1719510590488,0.1931,62043.0,62042.0,0.28259356]
[1719510590696,0.1931,62043.0,62042.0,0.28159356]
[1719510590893,0.1931,62043.0,62042.0,0.28059356]
[1719510591074,0.1931,62043.0,62042.0,0.28159356]
[1719510591496,0.1931,62043.0,62042.0,0.181]
[1719510592223,0.0931,62043.0,62042.0,0.181]
[1719510592375,0.0931,62043.0,62042.0,0.28259356]
[1719510592815,0.0931,62043.0,62042.0,0.002]
[1719510597477,0.0931,62043.0,62039.0,0.1001053]
[1719510597683,0.33832649,62044.0,62042.0,0.09529992]
[1719510597684,0.33851773,62044.0,62042.0,0.09529992]
[1719510598246,0.33851773,62044.0,62043.0,0.09529992]
[1719510598369,0.43161773,62044.0,62042.0,0.09529992]
[1719510598574,0.0931,62043.0,62042.0,0.09529992]
[1719510598776,0.33161773,62043.0,62042.0,0.09529992]
[1719510598993,0.43161773,62043.0,62042.0,0.09529992]
[1719510599376,0.43261773,62043.0,62042.0,0.09529992]
[1719510599600,0.1931,62043.0,62042.0,0.09529992]
[1719510600023,0.1941,62043.0,62042.0,0.09629992]
[1719510600203,0.1941,62043.0,62042.0,0.001]
[1719510600720,0.1941,62043.0,62042.0,0.09629992]
[1719510600921,0.1941,62043.0,62042.0,0.09729992]
[1719510601445,0.1941,62043.0,62042.0,0.09629992]
[1719510601446,0.43261773,62043.0,62042.0,0.09629992]
[1719510601590,0.43261773,62043.0,62042.0,0.001]
[1719510601794,0.33951773,62043.0,62042.0,0.002]
[1719510602102,0.43261773,62043.0,62042.0,0.002]
[1719510603281,0.1941,62043.0,62042.0,0.002]
[1719510604144,0.22973673,62043.0,62032.0,0.17844802]
[1719510604351,0.11733681,62041.0,62033.0,0.17844802]
[1719510604497,0.0931,62034.0,62033.0,0.17844802]
[1719510604941,0.0931,62034.0,62032.0,0.17844802]
[1719510605148,0.0931,62033.0,62031.0,0.17844802]
[1719510605351,0.1,62040.0,62034.0,0.17844802]
[1719510605488,0.0931,62035.0,62032.0,0.001]
[1719510605700,0.0931,62035.0,62034.0,0.17844802]
[1719510606311,0.33853125,62038.0,62037.0,0.11042275]
[1719510606523,0.1931,62038.0,62037.0,0.29778602]
[1719510606731,0.0931,62038.0,62037.0,0.29778602]
[1719510606927,0.0931,62038.0,62037.0,0.47608602]
[1719510607402,0.0931,62038.0,62037.0,0.46196319]
[1719510607709,0.0951,62038.0,62037.0,0.65553404]
[1719510608522,0.0951,62038.0,62037.0,0.54711129]
[1719510609087,0.002,62038.0,62037.0,0.54711129]
[1719510609253,0.0951,62038.0,62037.0,0.65653404]
[1719510610087,0.002,62038.0,62037.0,0.65653404]
[1719510610869,0.002,62038.0,62037.0,0.66653404]
[1719510612612,0.04804668,62046.0,62045.0,0.19736327]
[1719510612815,0.04804668,62046.0,62045.0,0.46768602]
[1719510613040,0.10084,62047.0,62046.0,0.29678602]
[1719510613159,0.10084,62047.0,62046.0,0.47523404]
[1719510613359,0.14899075,62047.0,62046.0,0.47523404]
[1719510613621,0.14899075,62047.0,62046.0,0.47436004]
[1719510613823,0.14899075,62047.0,62046.0,0.47086404]
[1719510614305,0.14899075,62047.0,62046.0,0.47586404]
[1719510614971,0.14899075,62047.0,62046.0,0.47786404]
[1719510615673,0.14899075,62047.0,62046.0,0.66276404]
[1719510615674,0.10084,62047.0,62046.0,0.66276404]
[1719510615878,0.00084,62047.0,62046.0,0.66276404]
[1719510617472,0.00084,62047.0,62046.0,0.67276404]
[1719510617941,0.00084,62047.0,62046.0,0.76586404]
[1719510618173,0.1,62054.0,62053.0,0.66906404]
[1719510618360,0.16329358,62063.0,62062.0,0.36144129]
[1719510618566,0.16329358,62064.0,62063.0,0.47086404]
[1719510618694,0.7260332,62076.0,62064.0,0.47086404]
[1719510618695,0.16329358,62065.0,62064.0,0.47086404]
[1719510618900,0.23821246,62075.0,62066.0,0.29241602]
[1719510619105,0.48782074,62076.0,62070.0,0.09529992]
[1719510619106,0.06462,62076.0,62070.0,0.09529992]
[1719510619357,0.0931,62071.0,62070.0,0.18299327]
[1719510620091,0.0221,62077.0,62070.0,0.18299327]
[1719510620219,0.0931,62071.0,62070.0,0.18299327]
[1719510620417,0.0931,62071.0,62070.0,0.18399327]
[1719510620629,0.0931,62071.0,62070.0,0.001]
[1719510620841,0.1152,62071.0,62070.0,0.001]
[1719510621042,0.2382,62071.0,62066.0,0.17844802]
[1719510621266,0.0931,62067.0,62066.0,0.17844802]
[1719510621851,0.0221,62066.0,62062.0,0.17844802]
[1719510622001,0.1221,62066.0,62062.0,0.17844802]
[1719510622205,0.1221,62066.0,62056.0,0.09529992]
[1719510622206,0.0221,62062.0,62056.0,0.17844802]
[1719510622383,0.0221,62062.0,62053.0,0.17844802]
[1719510622384,0.0931,62057.0,62053.0,0.17844802]
[1719510622581,0.2328,62054.0,62050.0,0.17844802]
[1719510622814,0.2328,62051.0,62050.0,0.17844802]
[1719510623053,0.3328,62051.0,62048.0,0.17844802]
[1719510623270,0.3328,62051.0,62045.0,0.17844802]
[1719510623271,0.1,62050.0,62045.0,0.17844802]
[1719510623457,0.2328,62046.0,62041.0,0.17844802]
[1719510623584,0.1,62050.0,62045.0,0.17844802]
[1719510623791,0.2328,62046.0,62045.0,0.17844802]
[1719510624010,0.3328,62046.0,62045.0,0.17844802]
[1719510624213,0.3328,62046.0,62044.0,0.17844802]
[1719510624424,0.1,62045.0,62044.0,0.17844802]
[1719510624644,0.1,62045.0,62042.0,0.36144129]
[1719510624848,0.1,62045.0,62044.0,0.17844802]
[1719510625320,0.1,62045.0,62044.0,0.45674121]
[1719510625520,0.1,62045.0,62044.0,0.54044129]
[1719510625721,0.1,62045.0,62044.0,0.63574121]
[1719510625959,0.1,62050.0,62047.0,0.17844802]
[1719510626391,0.106,62050.0,62049.0,0.18299327]
[1719510626908,0.2328,62053.0,62051.0,0.18199327]
[1719510627262,0.1,62052.0,62051.0,0.18099327]
[1719510627479,0.1,62052.0,62051.0,0.17999327]
[1719510628019,0.1,62052.0,62051.0,0.18499327]
[1719510628994,0.1,62052.0,62051.0,0.005]
[1719510629800,0.2328,62052.0,62051.0,0.005]
[1719510630020,0.2328,62052.0,62047.0,0.17844802]
[1719510630021,0.3328,62052.0,62047.0,0.17844802]
[1719510630221,0.1,62051.0,62047.0,0.17844802]
[1719510631146,0.1,62051.0,62050.0,0.17999327]
[1719510631490,0.1,62051.0,62050.0,0.19458923]
[1719510632127,0.1,62051.0,62050.0,0.28988915]
[1719510632532,0.1,62051.0,62050.0,0.19458923]
[1719510632915,0.106,62051.0,62050.0,0.19458923]
[1719510633387,0.107,62051.0,62050.0,0.19558923]
[1719510633583,0.108,62051.0,62050.0,0.20358923]
[1719510633780,0.101,62051.0,62050.0,0.20258923]
[1719510634188,0.102,62051.0,62050.0,0.20858923]
[1719510640711,0.1243,62051.0,62050.0,0.02859596]
[1719510640886,0.102,62051.0,62050.0,0.02859596]
[1719510642301,0.102,62051.0,62050.0,0.02854429]
[1719510646016,0.102,62051.0,62050.0,0.02490396]
[1719510646195,0.1,62051.0,62050.0,0.02490396]
[1719510647387,0.1455,62051.0,62039.0,0.35844129]
[1719510647588,0.2328,62042.0,62040.0,0.01347314]
[1719510648166,0.2424,62042.0,62040.0,0.01347314]
[1719510648379,0.1,62041.0,62040.0,0.010098]
[1719510648564,0.1,62041.0,62040.0,0.18854602]
[1719510648852,0.1,62041.0,62040.0,0.19192215]
[1719510649228,0.1,62041.0,62040.0,0.01347413]
[1719510649437,0.1,62041.0,62038.0,0.17844802]
[1719510649779,0.1,62041.0,62040.0,0.01347716]
[1719510649935,0.1,62041.0,62040.0,0.006]
[1719510650136,0.1,62041.0,62040.0,0.01947716]
[1719510650341,0.1,62041.0,62040.0,0.01347716]
[1719510650500,0.1139,62041.0,62040.0,0.02047716]
[1719510650888,0.1149,62041.0,62040.0,0.014]
[1719510651035,0.3348,62041.0,62040.0,0.014]
[1719510651245,0.2348,62041.0,62040.0,0.02747716]
[1719510651455,0.3348,62041.0,62040.0,0.02747716]
[1719510651750,0.3348,62041.0,62040.0,0.014]
[1719510654155,0.3348,62041.0,62040.0,0.48161602]
[1719510654156,0.102,62041.0,62040.0,0.48161602]
[1719510654362,0.2348,62041.0,62040.0,0.56411928]
[1719510654562,0.3348,62041.0,62040.0,0.56411928]
[1719510656444,0.3348,62041.0,62040.0,0.6594192]
[1719510656581,0.3348,62041.0,62040.0,0.67354203]
[1719510656582,0.102,62041.0,62040.0,0.67354203]
[1719510656789,0.2348,62041.0,62040.0,0.67354203]
[1719510657126,0.3348,62041.0,62040.0,0.67354203]
[1719510658208,0.3348,62041.0,62040.0,0.6594192]
[1719510660349,0.3348,62041.0,62040.0,0.67354203]
[1719510660566,0.3348,62041.0,62040.0,0.6594192]
[1719510661960,0.3348,62041.0,62040.0,0.65934847]
[1719510662115,0.3348,62041.0,62040.0,0.65597897]
[1719510663196,0.102,62041.0,62040.0,0.67347129]
[1719510663395,0.2348,62041.0,62040.0,0.67347129]
[1719510663601,0.3348,62041.0,62040.0,0.67347129]
[1719510664772,0.3348,62041.0,62040.0,0.65934846]
[1719510667598,0.3348,62041.0,62040.0,0.56404854]
[1719510668206,0.3348,62041.0,62040.0,0.20585527]
[1719510668576,0.57278942,62041.0,62040.0,0.20585527]
[1719510669005,0.3348,62041.0,62040.0,0.20585527]
[1719510669365,0.57306386,62041.0,62040.0,0.20585527]
[1719510669936,0.3348,62041.0,62040.0,0.20585527]
[1719510671517,0.102,62041.0,62040.0,0.38085527]
[1719510671722,0.102,62041.0,62040.0,0.47615519]
[1719510671723,0.3348,62041.0,62040.0,0.47615519]
[1719510671917,0.3348,62041.0,62040.0,0.38085527]
[1719510672562,0.3348,62041.0,62040.0,0.02740725]
[1719510672762,0.3435,62041.0,62040.0,0.02740725]
[1719510673002,0.3435,62041.0,62040.0,0.02403776]
[1719510676003,0.3435,62041.0,62040.0,0.02398483]
[1719510676362,0.3435,62041.0,62040.0,0.02735368]
[1719510678082,0.3435,62041.0,62037.0,0.000924]
[1719510678340,0.23817887,62038.0,62037.0,0.000924]
[1719510678559,0.23817887,62038.0,62032.0,0.17844802]
[1719510678560,0.0087,62037.0,62032.0,0.17844802]
[1719510678683,0.4656,62033.0,62030.0,0.17844802]
[1719510678882,0.1,62032.0,62030.0,0.17844802]
[1719510679860,0.33820211,62032.0,62030.0,0.17844802]
[1719510680083,0.33820211,62032.0,62030.0,0.18144802]
[1719510680084,0.101,62032.0,62030.0,0.18144802]
[1719510681173,0.101,62032.0,62030.0,0.003]
[1719510681391,0.23820211,62031.0,62030.0,0.006]
[1719510681574,0.59140211,62031.0,62030.0,0.006]
[1719510683666,0.1,62030.0,62029.0,0.000924]
[1719510684780,0.1,62030.0,62024.0,0.00087475]
[1719510685006,0.1,62030.0,62017.0,0.17999327]
[1719510685007,0.2328,62025.0,62017.0,0.35844129]
[1719510685210,0.1,62024.0,62017.0,0.17844802]
[1719510685419,0.23803341,62022.0,62015.0,0.17844802]
[1719510685622,0.2328,62018.0,62014.0,0.000924]
[1719510685903,0.47085043,62018.0,62015.0,0.01198906]
[1719510686089,0.1,62017.0,62015.0,0.01198906]
[1719510686591,0.1,62017.0,62016.0,0.17844802]
[1719510686940,0.1,62017.0,62016.0,0.17496646]
[1719510687193,0.1,62017.0,62016.0,0.18694033]
[1719510687397,0.1,62017.0,62016.0,0.01197387]
[1719510687807,0.1,62017.0,62007.0,0.53435973]
[1719510688013,0.2328,62008.0,62007.0,0.53435973]
[1719510688226,0.3328,62008.0,62007.0,0.53435973]
[1719510689251,0.05627058,62008.0,62007.0,0.35436646]
[1719510689405,0.0117,62016.0,62007.0,0.53435973]
[1719510689787,0.2328,62008.0,62007.0,0.53435973]
[1719510690454,0.2348,62008.0,62007.0,0.53735973]
[1719510690996,0.2348,62008.0,62007.0,0.17796646]
[1719510691235,0.2348,62008.0,61999.0,0.45025965]
[1719510691236,0.2465,62008.0,61999.0,0.45025965]
[1719510691443,0.2328,62000.0,61999.0,0.17496646]
[1719510691649,0.5656,62000.0,61999.0,0.17496646]
[1719510691798,0.5656,62000.0,61995.0,0.35495973]
[1719510691999,0.5656,62000.0,61995.0,0.17496646]
[1719510692000,0.1,61999.0,61995.0,0.17496646]
[1719510692302,0.1,61999.0,61993.0,0.17999327]
[1719510692303,0.10041331,61999.0,61997.0,0.17496646]
[1719510692736,0.10041331,61999.0,61998.0,0.17496646]
[1719510692931,0.10041331,61999.0,61988.0,0.17496646]
[1719510693162,0.10041331,61999.0,61988.0,0.1809]
[1719510693163,0.2328,61989.0,61988.0,0.1809]
[1719510693365,0.2328,61989.0,61987.0,0.45949965]
[1719510693366,0.3328,61989.0,61987.0,0.18420646]
[1719510693537,0.3328,61989.0,61987.0,0.00526047]
[1719510693538,0.10041331,61988.0,61987.0,0.00526047]
[1719510694051,0.10041331,61988.0,61987.0,0.18022693]
[1719510694052,0.14068437,61988.0,61987.0,0.18022693]
[1719510695485,0.14068437,61988.0,61987.0,0.00526047]
[1719510695694,0.14068437,61988.0,61987.0,0.18022693]
[1719510699535,0.10041331,61988.0,61987.0,0.18022693]
[1719510700397,0.15758437,61988.0,61981.0,0.00924]
[1719510700606,0.2328,61982.0,61981.0,0.00924]
[1719510700777,0.3328,61982.0,61981.0,0.00924]
[1719510700983,0.33321362,61982.0,61981.0,0.00924]
[1719510701182,0.37348468,61982.0,61981.0,0.00924]
[1719510701749,0.04027106,61981.0,61979.0,0.00924]
[1719510701860,0.14027106,61981.0,61979.0,0.00924]
[1719510702060,0.00041379,61980.0,61979.0,0.00924]
[1719510702304,0.04068485,61980.0,61979.0,0.00924]
[1719510702505,0.04068485,61980.0,61979.0,0.11866275]
[1719510702719,0.00041379,61980.0,61979.0,0.29696275]
[1719510702918,0.00041379,61980.0,61979.0,0.28283992]
[1719510703124,0.00041379,61980.0,61979.0,0.18754]
[1719510704159,0.00141379,61980.0,61979.0,0.18754]
[1719510704327,0.002,61980.0,61979.0,0.18754]
[1719510705332,0.002,61980.0,61979.0,0.28283992]
[1719510705527,0.002,61980.0,61979.0,0.47695602]
[1719510705528,0.001,61980.0,61979.0,0.47695602]
[1719510705729,0.001,61980.0,61979.0,0.65192248]
[1719510706929,0.1,61981.0,61980.0,0.17999327]
[1719510707145,0.1,61981.0,61980.0,0.46438248]
[1719510708142,0.1,61981.0,61980.0,0.46238248]
[1719510709009,0.101,61981.0,61980.0,0.46238248]
[1719510709213,0.102,61981.0,61980.0,0.46238248]
[1719510713380,0.102,61981.0,61980.0,0.54368594]
[1719510713585,0.2348,61981.0,61980.0,0.72448594]
[1719510713763,0.3348,61981.0,61980.0,0.72448594]
[1719510714572,0.102,61981.0,61980.0,0.72448594]
[1719510714772,0.3348,61981.0,61980.0,0.72448594]
[1719510717683,0.3348,61981.0,61980.0,0.64318248]
[1719510720869,0.3348,61981.0,61980.0,0.65318248]
[1719510721071,0.102,61981.0,61980.0,0.65318248]
[1719510721240,0.002,61981.0,61980.0,0.65318248]
[1719510721476,0.002,61981.0,61980.0,0.64318248]
[1719510721693,0.2348,61981.0,61980.0,0.64318248]
[1719510721889,0.2348,61981.0,61980.0,0.46238248]
[1719510721890,0.3348,61981.0,61980.0,0.46238248]
[1719510722008,0.3328,61981.0,61980.0,0.46330648]
[1719510722457,0.33364,61981.0,61980.0,0.46430648]
[1719510722610,0.33564,61981.0,61980.0,0.46430648]
[1719510722865,0.33464,61981.0,61980.0,0.46330648]
[1719510723296,0.33564,61981.0,61980.0,0.46430648]
[1719510723519,0.33564,61981.0,61980.0,0.45018365]
[1719510723697,0.33564,61981.0,61980.0,0.17689046]
[1719510724099,0.33464,61981.0,61980.0,0.27219038]
[1719510724301,0.33464,61981.0,61980.0,0.28631321]
[1719510724873,0.33564,61981.0,61980.0,0.30031321]
[1719510725283,0.33364,61981.0,61980.0,0.38531321]
[1719510725628,0.33564,61981.0,61980.0,0.40731321]
[1719510727534,0.33564,61981.0,61980.0,0.29319038]
[1719510727959,0.10284,61981.0,61980.0,0.48530648]
[1719510728113,0.10284,61981.0,61980.0,0.66580648]
[1719510728114,0.00284,61981.0,61980.0,0.66580648]
[1719510729345,0.23564,61981.0,61980.0,0.66580648]
[1719510729585,0.33564,61981.0,61980.0,0.66580648]
[1719510730861,0.10284,61981.0,61980.0,0.67580648]
[1719510731041,0.00284,61981.0,61980.0,0.67580648]
[1719510731461,0.064694,62005.0,62004.0,0.28741602]
[1719510731660,0.2328,62013.0,62012.0,0.09529992]
[1719510731872,0.2328,62013.0,62011.0,0.01412283]
[1719510731873,0.2328,62013.0,62011.0,0.09529992]
[1719510732287,0.2328,62013.0,62010.0,0.17496646]
[1719510732487,0.2328,62013.0,62010.0,0.27026638]
[1719510732685,0.2328,62011.0,62010.0,0.17496646]
[1719510732918,0.2328,62011.0,62010.0,0.27026638]
[1719510733116,0.2328,62011.0,62010.0,0.17496646]
[1719510733715,0.2328,62011.0,62010.0,0.27026638]
[1719510734071,0.2328,62011.0,62010.0,0.17496646]
[1719510734479,0.3328,62011.0,62010.0,0.27026638]
[1719510735267,0.3328,62011.0,62010.0,0.27526638]
[1719510735515,0.3328,62011.0,62010.0,0.17496646]
[1719510735918,0.3328,62011.0,62010.0,0.18296646]
[1719510736120,0.3328,62011.0,62010.0,0.18196646]
[1719510736481,0.3328,62011.0,62010.0,0.18696646]
[1719510736896,0.3328,62011.0,62010.0,0.18196646]
[1719510737103,0.3328,62011.0,62010.0,0.007]
[1719510737303,0.5384,62011.0,62010.0,0.007]
[1719510737512,0.53881395,62011.0,62010.0,0.007]
[1719510737718,0.53881395,62011.0,62003.0,0.17496646]
[1719510737950,0.2328,62004.0,62003.0,0.17496646]
[1719510738182,0.3328,62004.0,62003.0,0.17496646]
[1719510738997,0.3328,62004.0,62003.0,0.17596646]
[1719510739426,0.3328,62004.0,62003.0,0.17496646]
[1719510739632,0.3328,62004.0,62003.0,0.46238248]
[1719510739848,0.103,62004.0,62003.0,0.53978248]
[1719510740054,0.003,62004.0,62003.0,0.53978248]
[1719510740722,0.005,62004.0,62003.0,0.53978248]
[1719510741294,0.002,62004.0,62003.0,0.53978248]
[1719510741775,0.003,62004.0,62003.0,0.44825965]
[1719510741962,0.003,62004.0,62003.0,0.46238248]
[1719510741963,0.103,62004.0,62003.0,0.46238248]
[1719510742149,0.1,62004.0,62003.0,0.46238248]
[1719510742352,0.1,62004.0,62003.0,0.46738248]
[1719510742731,0.1,62004.0,62003.0,0.44825965]
[1719510742935,0.1,62004.0,62003.0,0.46738248]
[1719510743149,0.101,62004.0,62003.0,0.47338248]
[1719510743359,0.101,62004.0,62003.0,0.46838248]
[1719510743721,0.102,62004.0,62003.0,0.47438248]
[1719510744120,0.102,62004.0,62003.0,0.4714788]
[1719510745225,0.102,62004.0,62003.0,0.18406278]
[1719510748583,0.3068,62004.0,62003.0,0.012]
[1719510749382,0.32880673,62004.0,62003.0,0.012]
[1719510749555,0.32880673,62004.0,62003.0,0.006]
[1719510749556,0.3282213,62004.0,62003.0,0.006]
[1719510749819,0.3272213,62004.0,61997.0,0.17206278]
[1719510750038,0.2328,61998.0,61997.0,0.17206278]
[1719510750212,0.3558,61998.0,61997.0,0.17206278]
[1719510751788,0.3558,61998.0,61997.0,0.17306278]
[1719510752286,0.3558,61998.0,61997.0,0.17206278]
[1719510752565,0.3328,61998.0,61997.0,0.5405788]
[1719510752769,0.1,61998.0,61997.0,0.5405788]
[1719510752921,0.1,62002.0,62001.0,0.28741602]
[1719510753150,0.1,62002.0,62001.0,0.5590788]
[1719510753348,0.04389749,62004.0,62003.0,0.4594788]
[1719510753532,0.04389749,62004.0,62003.0,0.35005605]
[1719510753716,0.1,62007.0,62004.0,0.17799327]
[1719510753921,0.1,62007.0,62004.0,0.17699327]
[1719510754098,0.1,62007.0,62003.0,0.17206278]
[1719510754742,0.0998,62006.0,62003.0,0.17206278]
[1719510755196,0.0998,62006.0,62000.0,0.17206278]
[1719510755388,0.0829,62005.0,62001.0,0.17206278]
[1719510755591,0.2328,62002.0,62001.0,0.17206278]
[1719510755793,0.3328,62002.0,62001.0,0.17206278]
[1719510756568,0.3328,62002.0,61999.0,0.17206278]
[1719510756889,0.1,62001.0,62000.0,0.17206278]
[1719510758294,0.1,62001.0,62000.0,0.2673627]
[1719510758502,0.1,62001.0,62000.0,0.28148553]
[1719510758864,0.1,62001.0,62000.0,0.4584788]
[1719510759294,0.108,62001.0,62000.0,0.4584788]
[1719510759488,0.104,62001.0,62000.0,0.4584788]
[1719510759894,0.104,62001.0,62000.0,0.4594788]
[1719510760300,0.104,62001.0,62000.0,0.4584788]
[1719510760481,0.1,62001.0,62000.0,0.34905605]
[1719510760747,0.101,62001.0,62000.0,0.35705605]
[1719510761336,0.101,62001.0,62000.0,0.18006278]
[1719510762376,0.1,62001.0,62000.0,0.17306278]
[1719510762677,0.1,62001.0,62000.0,0.17606278]
[1719510762975,0.1,62001.0,62000.0,0.18006278]
[1719510763179,0.1,62001.0,62000.0,0.17606278]
[1719510763388,0.1,62001.0,62000.0,0.17206278]
[1719510763624,0.1,62001.0,62000.0,0.18206278]
[1719510763902,0.3328,62001.0,62000.0,0.18206278]
[1719510764404,0.3328,62001.0,62000.0,0.35905605]
[1719510764630,0.3328,62001.0,62000.0,0.4684788]
[1719510765832,0.3328,62001.0,62000.0,0.4634788]
[1719510766041,0.3328,62001.0,62000.0,0.4614788]
[1719510766407,0.3328,62001.0,62000.0,0.4644788]
[1719510767249,0.3328,62001.0,62000.0,0.4644317]
[1719510767655,0.3328,62001.0,62000.0,0.17801568]
[1719510768932,0.3328,62001.0,62000.0,0.17501568]
[1719510769139,0.3328,62001.0,62000.0,0.17201568]
[1719510769348,0.3368,62001.0,62000.0,0.17201568]
[1719510769544,0.3408,62001.0,62000.0,0.17201568]
[1719510771574,0.3408,62001.0,61999.0,0.17201568]
[1719510771776,0.3408,62001.0,62000.0,0.17201568]
[1719510772600,0.3368,62001.0,62000.0,0.17201568]
[1719510772833,0.3408,62001.0,62000.0,0.17201568]
[1719510773185,0.3368,62001.0,62000.0,0.17201568]
[1719510773389,0.37923419,62001.0,62000.0,0.17201568]
[1719510773590,0.38323419,62001.0,62000.0,0.17201568]
[1719510775236,0.15043419,62001.0,62000.0,0.34900895]
[1719510775437,0.05043419,62001.0,62000.0,0.42290895]
[1719510775580,0.15043419,62001.0,62000.0,0.6332317]
[1719510776179,0.1,62001.0,62000.0,0.6332317]
[1719510776624,0.2328,62009.0,62007.0,0.45381602]
[1719510776625,0.1,62008.0,62007.0,0.45381602]
[1719510776828,0.1,62008.0,62007.0,0.45281602]
[1719510777546,0.1,62008.0,62007.0,0.45181602]
[1719510777924,0.1,62013.0,62012.0,0.10942275]
[1719510778123,0.3328,62013.0,62012.0,0.10942275]
[1719510778322,0.3328,62013.0,62012.0,0.09529992]
[1719510778705,0.3328,62013.0,62012.0,0.09429992]
[1719510779532,0.3378,62013.0,62012.0,0.09429992]
[1719510779748,0.3378,62013.0,62012.0,0.10842275]
[1719510780528,0.3428,62013.0,62012.0,0.09429992]
[1719510781132,0.3428,62013.0,62011.0,0.09429992]
[1719510781337,0.3428,62013.0,62012.0,0.09429992]
[1719510781560,0.11,62013.0,62012.0,0.6331317]
[1719510781765,0.01,62013.0,62012.0,0.6331317]
[1719510782077,0.005,62013.0,62012.0,0.6331317]
[1719510782482,0.01,62013.0,62012.0,0.6331317]
[1719510782946,0.005,62013.0,62012.0,0.6431317]
[1719510783111,0.04267582,62017.0,62016.0,0.6331317]
[1719510783527,0.1,62019.0,62018.0,0.10842275]
[1719510784423,0.1,62019.0,62018.0,0.10742275]
[1719510785746,0.1,62019.0,62017.0,0.34600895]
[1719510786190,0.101,62019.0,62018.0,0.007]
[1719510786391,0.102,62019.0,62018.0,0.016]
[1719510786596,0.101,62019.0,62018.0,0.009]
[1719510786800,0.102,62019.0,62018.0,0.018]
[1719510787217,0.101,62019.0,62018.0,0.009]
[1719510787605,0.102,62019.0,62018.0,0.017]
[1719510787818,0.101,62019.0,62018.0,0.009]
[1719510788171,0.102,62019.0,62018.0,0.018]
[1719510788371,0.101,62019.0,62018.0,0.009]
[1719510788864,0.102,62019.0,62018.0,0.009]
[1719510789299,0.101,62019.0,62018.0,0.009]
[1719510789465,0.101,62019.0,62018.0,0.018]
[1719510789669,0.102,62019.0,62018.0,0.11229992]
[1719510789968,0.10284,62019.0,62018.0,0.018]
[1719510790168,0.14432439,62019.0,62018.0,0.018]
[1719510794502,0.31412439,62019.0,62018.0,0.018]
[1719510794710,0.33712439,62019.0,62018.0,0.0039973]
[1719510795471,0.33612439,62019.0,62018.0,0.0039973]
[1719510795667,0.33512439,62019.0,62014.0,0.17201568]
[1719510795892,0.2328,62015.0,62014.0,0.17201568]
[1719510796113,0.3328,62015.0,62014.0,0.17201568]
[1719510796876,0.3328,62015.0,62012.0,0.17201568]
[1719510797078,0.3328,62015.0,62014.0,0.17201568]
[1719510797705,0.3328,62015.0,62013.0,0.17201568]
[1719510797983,0.3328,62015.0,62014.0,0.005]
[1719510797984,0.2707,62015.0,62014.0,0.005]
[1719510798341,0.5275,62015.0,62014.0,0.01]
[1719510798745,0.5265,62015.0,62010.0,0.17201568]
[1719510798929,0.123,62014.0,62013.0,0.001]
[1719510799136,0.123,62014.0,62013.0,0.002]
[1719510799530,0.123,62014.0,62013.0,0.001]
[1719510800600,0.123,62014.0,62010.0,0.17301568]
[1719510800801,0.123,62014.0,62005.0,0.11599624]
[1719510801016,0.2328,62009.0,62005.0,0.11599624]
[1719510801241,0.1,62014.0,62013.0,0.11599624]
[1719510801449,0.3408,62014.0,62013.0,0.11599624]
[1719510801853,0.3328,62014.0,62013.0,0.11599624]
[1719510802053,0.3408,62014.0,62013.0,0.11599624]
[1719510802302,0.3478,62014.0,62013.0,0.11599624]
[1719510802535,0.3398,62014.0,62013.0,0.11599624]
[1719510802773,0.04232439,62019.0,62013.0,0.28329624]
[1719510803029,0.04232439,62019.0,62010.0,0.08130346]
[1719510803030,0.00084,62019.0,62018.0,0.12911907]
[1719510803246,0.00084,62019.0,62018.0,0.30641907]
[1719510803943,0.00084,62019.0,62018.0,0.29941907]
[1719510804666,0.00184,62019.0,62018.0,0.30941907]
[1719510804937,0.01384,62019.0,62018.0,0.30941907]
[1719510805162,0.04122203,62039.0,62038.0,0.01312283]
[1719510805375,0.76184277,62039.0,62038.0,0.01312283]
[1719510805622,0.2328,62039.0,62036.0,0.01312283]
[1719510805835,0.2328,62039.0,62035.0,0.12211907]
[1719510806083,0.2328,62039.0,62035.0,0.10899624]
[1719510807220,0.1,62038.0,62035.0,0.10899624]
[1719510807904,0.1,62038.0,62036.0,0.002]
[1719510808334,0.1,62038.0,62035.0,0.10999624]
[1719510808575,0.1,62038.0,62036.0,0.01312283]
[1719510808825,0.1,62038.0,62035.0,0.10999624]
[1719510808826,0.1,62038.0,62037.0,0.00791246]
[1719510810016,0.1,62038.0,62037.0,0.1169087]
[1719510810426,0.04156418,62040.0,62037.0,0.1169087]
[1719510810750,0.00841,62043.0,62039.0,0.00791246]
[1719510810751,0.2328,62041.0,62039.0,0.00791246]
[1719510810953,0.1,62040.0,62039.0,0.00791246]
[1719510811130,0.1,62040.0,62039.0,0.1169087]
[1719510812236,0.1,62040.0,62039.0,0.1189087]
[1719510813263,0.1,62040.0,62039.0,0.2858087]
[1719510813526,0.00841,62043.0,62042.0,0.1169087]
[1719510814932,0.01141,62043.0,62042.0,0.1169087]
[1719510815498,0.00841,62043.0,62042.0,0.1169087]
[1719510816502,0.00841,62043.0,62042.0,0.2029087]
[1719510817069,0.00941,62043.0,62042.0,0.2149087]
[1719510817406,0.00841,62043.0,62042.0,0.2029087]
[1719510817616,0.00941,62043.0,62042.0,0.2169087]
[1719510817815,0.00941,62043.0,62042.0,0.2029087]
[1719510818031,0.00941,62043.0,62042.0,0.1889087]
[1719510818032,0.00841,62043.0,62042.0,0.1889087]
[1719510818370,0.00941,62043.0,62042.0,0.2169087]
[1719510818520,0.00841,62043.0,62042.0,0.2029087]
[1719510818719,0.00841,62043.0,62042.0,0.1889087]
[1719510818989,0.00941,62043.0,62042.0,0.2029087]
[1719510819167,0.00941,62043.0,62042.0,0.2169087]